[Event "*** Titled Tuesday Blitz"]
[Site "Chess.com"]
[Date "2019.12.03"]
[Round "7"]
[White "Vugar_Manafov"]
[Black "Saitama_Hero"]
[Result "1-0"]
[WhiteElo "2505"]
[BlackElo "2315"]
[TimeControl "180+2"]
[EndTime "14:35:18 PST"]
[Termination "Vugar_Manafov won by resignation"]

1. e4 {[%clk 0:03:01.9]} 1... e5 {[%clk 0:02:59.7]} 2. Nf3 {[%clk 0:03:00.3]}
2... Nc6 {[%clk 0:03:01.1]} 3. c3 {[%clk 0:02:58.6]} 3... Nf6 {[%clk 0:02:59.9]}
4. d3 {[%clk 0:02:59]} 4... d5 {[%clk 0:02:58.8]} 5. Nbd2 {[%clk 0:03:00.5]}
5... Be7 {[%clk 0:02:55.3]} 6. Be2 {[%clk 0:03:00.7]} 6... O-O {[%clk
0:02:56.5]} 7. O-O {[%clk 0:03:01.1]} 7... Re8 {[%clk 0:02:57]} 8. Qc2 {[%clk
0:03:00.7]} 8... Bf8 {[%clk 0:02:50.2]} 9. Re1 {[%clk 0:03:00.5]} 9... a5 {[%clk
0:02:44.5]} 10. a4 {[%clk 0:02:53.4]} 10... h6 {[%clk 0:02:40.6]} 11. Bf1 {[%clk
0:02:53]} 11... d4 {[%clk 0:02:37.4]} 12. Nc4 {[%clk 0:02:50.8]} 12... Nd7
{[%clk 0:02:13]} 13. Bd2 {[%clk 0:02:38.4]} 13... Ra6 {[%clk 0:02:09.4]} 14. g3
{[%clk 0:02:21.8]} 14... Nb6 {[%clk 0:02:04.7]} 15. Na3 {[%clk 0:02:20.5]} 15...
Bg4 {[%clk 0:01:34.7]} 16. Bg2 {[%clk 0:02:17.9]} 16... Qf6 {[%clk 0:01:32.8]}
17. Nh4 {[%clk 0:02:13.1]} 17... g5 {[%clk 0:01:19.4]} 18. Nf5 {[%clk
0:02:09.5]} 18... Bxf5 {[%clk 0:01:21]} 19. exf5 {[%clk 0:02:10.4]} 19... Qxf5
{[%clk 0:01:22.9]} 20. Bxc6 {[%clk 0:02:03.7]} 20... bxc6 {[%clk 0:01:22.8]} 21.
cxd4 {[%clk 0:02:04.3]} 21... Nd5 {[%clk 0:01:17.1]} 22. Nc4 {[%clk 0:02:03.7]}
22... f6 {[%clk 0:01:00.7]} 23. dxe5 {[%clk 0:02:00.1]} 23... fxe5 {[%clk
0:00:47.5]} 24. Ne3 {[%clk 0:02:00]} 24... Qd7 {[%clk 0:00:38.2]} 25. Rac1
{[%clk 0:01:54.1]} 25... Rb6 {[%clk 0:00:34.2]} 26. Nc4 {[%clk 0:01:50.2]} 26...
Rbb8 {[%clk 0:00:29.2]} 27. Nxe5 {[%clk 0:01:49.6]} 27... Rxe5 {[%clk
0:00:28.6]} 28. Rxe5 {[%clk 0:01:49.9]} 28... Bg7 {[%clk 0:00:30.5]} 29. Re2
{[%clk 0:01:26.6]} 29... Rxb2 {[%clk 0:00:31.4]} 30. Qxc6 {[%clk 0:01:25.3]}
30... Qf7 {[%clk 0:00:32.3]} 31. Rc2 {[%clk 0:00:52.2]} 31... Rb1+ {[%clk
0:00:27.5]} 32. Kg2 {[%clk 0:00:49.5]} 32... g4 {[%clk 0:00:24.5]} 33. Qe8+
{[%clk 0:00:46.4]} 33... Bf8 {[%clk 0:00:25.3]} 34. Qxf7+ {[%clk 0:00:45.8]}
34... Kxf7 {[%clk 0:00:27.2]} 35. Re5 {[%clk 0:00:46]} 35... c6 {[%clk
0:00:25.7]} 36. Rxc6 {[%clk 0:00:46]} 1-0

[Event "*** Titled Tuesday Blitz"]
[Site "Chess.com"]
[Date "2019.12.03"]
[Round "7"]
[White "Sunrise777"]
[Black "ShahMatKanal"]
[Result "1-0"]
[WhiteElo "2691"]
[BlackElo "2485"]
[TimeControl "180+2"]
[EndTime "14:35:21 PST"]
[Termination "Sunrise777 won by resignation"]

1. d4 {[%clk 0:03:01.5]} 1... d5 {[%clk 0:03:00.6]} 2. c4 {[%clk 0:03:03]} 2...
e6 {[%clk 0:03:01.4]} 3. Nc3 {[%clk 0:03:03.6]} 3... Nf6 {[%clk 0:03:02.7]} 4.
Nf3 {[%clk 0:03:05]} 4... Be7 {[%clk 0:03:02.7]} 5. Bf4 {[%clk 0:03:05.4]} 5...
Nbd7 {[%clk 0:02:58.8]} 6. c5 {[%clk 0:03:05.9]} 6... c6 {[%clk 0:02:36]} 7. e3
{[%clk 0:03:06.4]} 7... Nh5 {[%clk 0:02:27.5]} 8. Bd3 {[%clk 0:03:07.4]} 8...
Nxf4 {[%clk 0:02:28.2]} 9. exf4 {[%clk 0:03:09.3]} 9... O-O {[%clk 0:02:25.8]}
10. O-O {[%clk 0:03:10.1]} 10... Re8 {[%clk 0:02:15.4]} 11. b4 {[%clk 0:03:09]}
11... Qc7 {[%clk 0:01:59.2]} 12. Ne5 {[%clk 0:03:02]} 12... Nf8 {[%clk
0:01:54.1]} 13. Re1 {[%clk 0:02:32.6]} 13... g6 {[%clk 0:01:51.4]} 14. g3 {[%clk
0:02:23.9]} 14... Bf6 {[%clk 0:01:51.6]} 15. b5 {[%clk 0:02:20.7]} 15... Bg7
{[%clk 0:01:47.2]} 16. bxc6 {[%clk 0:02:18.2]} 16... bxc6 {[%clk 0:01:48.1]} 17.
Qa4 {[%clk 0:02:18.9]} 17... Bd7 {[%clk 0:01:41.4]} 18. Rab1 {[%clk 0:02:13.5]}
18... f6 {[%clk 0:01:29.2]} 19. Nf3 {[%clk 0:01:53.3]} 19... e5 {[%clk 0:01:26]}
20. fxe5 {[%clk 0:01:51.5]} 20... fxe5 {[%clk 0:01:27.1]} 21. Nxe5 {[%clk
0:01:51.7]} 21... Ne6 {[%clk 0:01:00.2]} 22. Nxd5 {[%clk 0:01:31.1]} 22... cxd5
{[%clk 0:01:01.1]} 23. Nxd7 {[%clk 0:01:27.4]} 23... Bxd4 {[%clk 0:00:48.8]} 24.
c6 {[%clk 0:01:14]} 24... Bg7 {[%clk 0:00:36.1]} 25. Bf1 {[%clk 0:00:49.6]}
25... Nd4 {[%clk 0:00:35.8]} 26. Bg2 {[%clk 0:00:46.7]} 26... Qd6 {[%clk
0:00:27]} 27. c7 {[%clk 0:00:39.1]} 27... Ne6 {[%clk 0:00:21.3]} 28. Rb8 {[%clk
0:00:34.5]} 28... Nxc7 {[%clk 0:00:18.8]} 29. Rexe8+ {[%clk 0:00:32]} 29... Nxe8
{[%clk 0:00:12.7]} 30. Rxa8 {[%clk 0:00:33.2]} 30... Qe6 {[%clk 0:00:03.4]} 1-0

[Event "*** Titled Tuesday Blitz"]
[Site "Chess.com"]
[Date "2019.12.03"]
[Round "7"]
[White "Bigfish1995"]
[Black "TigranLPetrosyan"]
[Result "1-0"]
[WhiteElo "3002"]
[BlackElo "2878"]
[TimeControl "180+2"]
[EndTime "14:35:23 PST"]
[Termination "Bigfish1995 won by resignation"]

1. d4 {[%clk 0:03:01.9]} 1... g6 {[%clk 0:03:00.1]} 2. c4 {[%clk 0:03:01.1]}
2... Bg7 {[%clk 0:03:01.3]} 3. Nc3 {[%clk 0:03:01.7]} 3... f5 {[%clk 0:03:02.8]}
4. g3 {[%clk 0:03:00.8]} 4... d6 {[%clk 0:02:54.8]} 5. Bg2 {[%clk 0:03:01.3]}
5... Nf6 {[%clk 0:02:56.1]} 6. Nf3 {[%clk 0:03:02.3]} 6... O-O {[%clk
0:02:57.7]} 7. O-O {[%clk 0:03:03.3]} 7... c6 {[%clk 0:02:59.6]} 8. Qc2 {[%clk
0:02:59.6]} 8... Na6 {[%clk 0:02:58.7]} 9. Rd1 {[%clk 0:02:55.5]} 9... Qe8
{[%clk 0:02:54.9]} 10. d5 {[%clk 0:02:51]} 10... Bd7 {[%clk 0:02:49.6]} 11. Nd4
{[%clk 0:02:40.6]} 11... Rc8 {[%clk 0:02:44.7]} 12. Qb3 {[%clk 0:02:35.3]} 12...
Nc5 {[%clk 0:02:42.5]} 13. Qa3 {[%clk 0:02:36.1]} 13... a6 {[%clk 0:02:29]} 14.
b4 {[%clk 0:02:09.1]} 14... Nce4 {[%clk 0:02:27.7]} 15. Bb2 {[%clk 0:02:08.6]}
15... cxd5 {[%clk 0:02:19.5]} 16. cxd5 {[%clk 0:02:08.9]} 16... Nxc3 {[%clk
0:01:53.8]} 17. Bxc3 {[%clk 0:02:08]} 17... Qf7 {[%clk 0:01:54.5]} 18. Qb3
{[%clk 0:02:02.2]} 18... Ba4 {[%clk 0:01:34.7]} 19. Qxa4 {[%clk 0:02:00.2]}
19... Rxc3 {[%clk 0:01:36.4]} 20. Ne6 {[%clk 0:01:41]} 20... Rfc8 {[%clk
0:01:35.9]} 21. Rd3 {[%clk 0:01:19.3]} 21... Rc2 {[%clk 0:01:30.9]} 22. Re1
{[%clk 0:01:16.3]} 22... Ng4 {[%clk 0:01:20.3]} 23. Qd7 {[%clk 0:01:11.4]} 23...
Ne5 {[%clk 0:01:19.2]} 24. Qxb7 {[%clk 0:01:11.3]} 24... Nxd3 {[%clk 0:01:20.2]}
25. exd3 {[%clk 0:01:13]} 25... f4 {[%clk 0:00:57]} 26. gxf4 {[%clk 0:01:02.5]}
26... Bd4 {[%clk 0:00:38.7]} 27. Nxd4 {[%clk 0:00:54.1]} 27... Rc1 {[%clk
0:00:39.9]} 28. Rf1 {[%clk 0:00:37.6]} 28... Qxf4 {[%clk 0:00:36.3]} 29. Ne2
{[%clk 0:00:35.1]} 29... Rxf1+ {[%clk 0:00:28.1]} 30. Kxf1 {[%clk 0:00:29]}
30... Rc1+ {[%clk 0:00:24.5]} 31. Nxc1 {[%clk 0:00:29.4]} 31... Qxc1+ {[%clk
0:00:26.4]} 32. Ke2 {[%clk 0:00:30.9]} 32... Qc2+ {[%clk 0:00:28.3]} 33. Ke3
{[%clk 0:00:32]} 33... Qc1+ {[%clk 0:00:29.8]} 34. Kf3 {[%clk 0:00:25.7]} 34...
g5 {[%clk 0:00:25.6]} 35. Qxe7 {[%clk 0:00:21.3]} 1-0

[Event "*** Titled Tuesday Blitz"]
[Site "Chess.com"]
[Date "2019.12.03"]
[Round "7"]
[White "Winehouse83"]
[Black "Manukyan_Artak"]
[Result "0-1"]
[WhiteElo "2519"]
[BlackElo "2367"]
[TimeControl "180+2"]
[EndTime "14:35:23 PST"]
[Termination "Manukyan_Artak won by resignation"]

1. d4 {[%clk 0:02:41.9]} 1... Nf6 {[%clk 0:02:59.8]} 2. c4 {[%clk 0:02:42.9]}
2... e6 {[%clk 0:03:00.8]} 3. Nf3 {[%clk 0:02:44]} 3... b6 {[%clk 0:03:02.1]} 4.
a3 {[%clk 0:02:45]} 4... Bb7 {[%clk 0:03:03]} 5. Nc3 {[%clk 0:02:46.2]} 5... c5
{[%clk 0:03:01.1]} 6. d5 {[%clk 0:02:46.8]} 6... exd5 {[%clk 0:03:02.1]} 7. cxd5
{[%clk 0:02:48.7]} 7... d6 {[%clk 0:03:03.4]} 8. g3 {[%clk 0:02:49.9]} 8... Nbd7
{[%clk 0:03:03.2]} 9. Bg2 {[%clk 0:02:51.1]} 9... Be7 {[%clk 0:03:01.6]} 10. O-O
{[%clk 0:02:51.6]} 10... O-O {[%clk 0:03:02.5]} 11. h3 {[%clk 0:02:52.9]} 11...
Re8 {[%clk 0:03:03.1]} 12. e4 {[%clk 0:02:52.4]} 12... Bf8 {[%clk 0:03:03.7]}
13. Re1 {[%clk 0:02:53.6]} 13... a6 {[%clk 0:03:03.2]} 14. a4 {[%clk 0:02:54.3]}
14... c4 {[%clk 0:03:01.6]} 15. Nd4 {[%clk 0:02:41.3]} 15... Nc5 {[%clk
0:02:55]} 16. Bg5 {[%clk 0:02:28.9]} 16... h6 {[%clk 0:02:44.3]} 17. Bxf6 {[%clk
0:02:29.6]} 17... Qxf6 {[%clk 0:02:46.2]} 18. Bf1 {[%clk 0:02:25.5]} 18... Nd3
{[%clk 0:02:35.7]} 19. Bxd3 {[%clk 0:02:20.4]} 19... Qxd4 {[%clk 0:02:36.6]} 20.
Bf1 {[%clk 0:02:18]} 20... Qc5 {[%clk 0:02:35.8]} 21. b3 {[%clk 0:02:02.1]}
21... b5 {[%clk 0:02:25.7]} 22. axb5 {[%clk 0:01:58.2]} 22... axb5 {[%clk
0:02:27.6]} 23. bxc4 {[%clk 0:01:59.3]} 23... bxc4 {[%clk 0:02:23.4]} 24. Qe2
{[%clk 0:01:56.7]} 24... Ba6 {[%clk 0:02:16.9]} 25. Ra4 {[%clk 0:01:30]} 25...
Bb5 {[%clk 0:02:09.2]} 26. Rxa8 {[%clk 0:01:26.9]} 26... Rxa8 {[%clk 0:02:11.1]}
27. Nxb5 {[%clk 0:01:28.2]} 27... Qxb5 {[%clk 0:02:11.6]} 28. Qxc4 {[%clk
0:01:29.2]} 28... Qxc4 {[%clk 0:02:12.7]} 29. Bxc4 {[%clk 0:01:30]} 29... g5
{[%clk 0:02:12.7]} 30. Be2 {[%clk 0:01:15.4]} 30... Bg7 {[%clk 0:02:11.7]} 31.
Bg4 {[%clk 0:01:16.7]} 31... Ra1 {[%clk 0:02:07.7]} 32. Bd1 {[%clk 0:01:14.3]}
32... Bd4 {[%clk 0:02:00.1]} 33. Kg2 {[%clk 0:01:14.2]} 33... Kg7 {[%clk
0:01:47.1]} 34. f4 {[%clk 0:01:14.7]} 34... Ra2+ {[%clk 0:01:45.6]} 35. Be2
{[%clk 0:01:13.6]} 35... Bc3 {[%clk 0:01:44.4]} 36. Rc1 {[%clk 0:01:08]} 36...
Rxe2+ {[%clk 0:01:38.6]} 37. Kf3 {[%clk 0:01:08.4]} 37... Bb2 {[%clk 0:01:20.5]}
38. Rb1 {[%clk 0:00:55.2]} 38... Rc2 {[%clk 0:01:16.1]} 39. e5 {[%clk
0:00:55.5]} 39... dxe5 {[%clk 0:01:12.6]} 40. d6 {[%clk 0:00:56.5]} 40... exf4
{[%clk 0:01:05.2]} 41. gxf4 {[%clk 0:00:50.4]} 41... Bf6 {[%clk 0:00:38.8]} 42.
fxg5 {[%clk 0:00:41.4]} 42... hxg5 {[%clk 0:00:39]} 43. Rc1 {[%clk 0:00:40.7]}
0-1

[Event "*** Titled Tuesday Blitz"]
[Site "Chess.com"]
[Date "2019.12.03"]
[Round "7"]
[White "Noam_Vitenberg"]
[Black "chiwii"]
[Result "0-1"]
[WhiteElo "2314"]
[BlackElo "2028"]
[TimeControl "180+2"]
[EndTime "14:35:26 PST"]
[Termination "chiwii won by checkmate"]

1. c4 {[%clk 0:03:01.9]} 1... Nf6 {[%clk 0:03:00.1]} 2. g3 {[%clk 0:02:59]} 2...
g6 {[%clk 0:03:01.1]} 3. Bg2 {[%clk 0:02:58.9]} 3... Bg7 {[%clk 0:03:02.4]} 4.
d4 {[%clk 0:02:59]} 4... O-O {[%clk 0:03:02.5]} 5. Nf3 {[%clk 0:03:00.4]} 5...
d6 {[%clk 0:03:01.8]} 6. Nc3 {[%clk 0:03:01.3]} 6... Nc6 {[%clk 0:03:02.9]} 7.
O-O {[%clk 0:02:56.1]} 7... e5 {[%clk 0:03:03.7]} 8. dxe5 {[%clk 0:02:54.5]}
8... dxe5 {[%clk 0:03:04.7]} 9. Bg5 {[%clk 0:02:55.3]} 9... Be6 {[%clk
0:02:59.8]} 10. Nd5 {[%clk 0:02:44]} 10... Bxd5 {[%clk 0:02:03.2]} 11. Bxf6
{[%clk 0:02:44.3]} 11... Qxf6 {[%clk 0:02:02.3]} 12. cxd5 {[%clk 0:02:44.3]}
12... Rad8 {[%clk 0:02:02.9]} 13. Qb3 {[%clk 0:02:26.5]} 13... Na5 {[%clk
0:01:44.4]} 14. Qb5 {[%clk 0:02:22.3]} 14... b6 {[%clk 0:01:42.6]} 15. b4 {[%clk
0:02:16.4]} 15... Nb7 {[%clk 0:01:43.2]} 16. Rac1 {[%clk 0:02:16.4]} 16... Nd6
{[%clk 0:01:39.4]} 17. Qa4 {[%clk 0:02:14.7]} 17... e4 {[%clk 0:01:38.8]} 18.
Nd2 {[%clk 0:02:07.3]} 18... Qd4 {[%clk 0:01:39.4]} 19. Rfd1 {[%clk 0:02:06.6]}
19... Qxd5 {[%clk 0:01:36.9]} 20. Nxe4 {[%clk 0:02:05.9]} 20... Qe6 {[%clk
0:01:26.6]} 21. Nxd6 {[%clk 0:01:58.6]} 21... cxd6 {[%clk 0:01:28.5]} 22. e3
{[%clk 0:01:43.4]} 22... Qe7 {[%clk 0:01:13.7]} 23. Qa6 {[%clk 0:01:27.6]} 23...
Bb2 {[%clk 0:00:56.8]} 24. Rc2 {[%clk 0:01:25]} 24... Be5 {[%clk 0:00:56.7]} 25.
Bd5 {[%clk 0:01:20.1]} 25... Kh8 {[%clk 0:00:46.9]} 26. Rdc1 {[%clk 0:01:17.9]}
26... Rd7 {[%clk 0:00:44.8]} 27. Rc4 {[%clk 0:00:59.2]} 27... f5 {[%clk
0:00:37.7]} 28. f4 {[%clk 0:00:49.4]} 28... Bg7 {[%clk 0:00:37.1]} 29. e4 {[%clk
0:00:51.3]} 29... fxe4 {[%clk 0:00:36.2]} 30. Rxe4 {[%clk 0:00:53.2]} 30... Qf6
{[%clk 0:00:35.1]} 31. Rc8 {[%clk 0:00:47]} 31... Rdd8 {[%clk 0:00:34.6]} 32.
Rxd8 {[%clk 0:00:46.2]} 32... Rxd8 {[%clk 0:00:36.5]} 33. Qxa7 {[%clk
0:00:39.5]} 33... Rc8 {[%clk 0:00:36.8]} 34. Qf7 {[%clk 0:00:17.4]} 34... Qa1+
{[%clk 0:00:33.2]} 35. Kg2 {[%clk 0:00:17.8]} 35... Rc2+ {[%clk 0:00:33.8]} 36.
Kh3 {[%clk 0:00:17]} 36... Qf1+ {[%clk 0:00:34.4]} 37. Kg4 {[%clk 0:00:17.3]}
37... Qd1+ {[%clk 0:00:29.7]} 38. Kg5 {[%clk 0:00:18.3]} 38... Qh5# {[%clk
0:00:30.4]} 0-1

[Event "*** Titled Tuesday Blitz"]
[Site "Chess.com"]
[Date "2019.12.03"]
[Round "7"]
[White "rasmussvane"]
[Black "Micki-taryan"]
[Result "1-0"]
[WhiteElo "2839"]
[BlackElo "2981"]
[TimeControl "180+2"]
[EndTime "14:35:35 PST"]
[Termination "rasmussvane won by resignation"]

1. Nf3 {[%clk 0:03:01.9]} 1... d5 {[%clk 0:03:01.4]} 2. g3 {[%clk 0:03:02.7]}
2... Nc6 {[%clk 0:03:02.6]} 3. d4 {[%clk 0:03:03.4]} 3... Bf5 {[%clk 0:03:04.1]}
4. Bg2 {[%clk 0:03:04.7]} 4... Nb4 {[%clk 0:03:05.7]} 5. Na3 {[%clk 0:03:06.2]}
5... e6 {[%clk 0:03:06.7]} 6. c3 {[%clk 0:03:07.5]} 6... Nc6 {[%clk 0:03:08.1]}
7. Qb3 {[%clk 0:03:08.9]} 7... Rb8 {[%clk 0:03:09.5]} 8. O-O {[%clk 0:03:09.8]}
8... Be7 {[%clk 0:03:10.8]} 9. Bf4 {[%clk 0:03:09.3]} 9... Nf6 {[%clk
0:03:11.9]} 10. c4 {[%clk 0:02:54]} 10... O-O {[%clk 0:03:12.3]} 11. cxd5 {[%clk
0:02:37.2]} 11... Nxd5 {[%clk 0:03:09.4]} 12. Bd2 {[%clk 0:02:37.8]} 12... Be4
{[%clk 0:03:08.1]} 13. e3 {[%clk 0:02:34]} 13... Bxa3 {[%clk 0:03:05.6]} 14.
Qxa3 {[%clk 0:02:31.3]} 14... Qf6 {[%clk 0:03:07]} 15. Nh4 {[%clk 0:02:14.2]}
15... Bxg2 {[%clk 0:03:08.9]} 16. Kxg2 {[%clk 0:02:15.3]} 16... e5 {[%clk
0:02:48.8]} 17. e4 {[%clk 0:02:11.3]} 17... Nb6 {[%clk 0:02:49.5]} 18. d5 {[%clk
0:02:11.3]} 18... Nd4 {[%clk 0:02:50.6]} 19. Rac1 {[%clk 0:02:11.2]} 19... c6
{[%clk 0:02:46.5]} 20. dxc6 {[%clk 0:02:02.7]} 20... bxc6 {[%clk 0:02:47.1]} 21.
Nf3 {[%clk 0:01:38.6]} 21... Nd7 {[%clk 0:02:33.9]} 22. Nxd4 {[%clk 0:01:30.9]}
22... exd4 {[%clk 0:02:35.8]} 23. Bf4 {[%clk 0:01:29.6]} 23... Rb7 {[%clk
0:02:34.9]} 24. Qa6 {[%clk 0:01:17.7]} 24... Rxb2 {[%clk 0:02:34.8]} 25. Qxa7
{[%clk 0:01:12.6]} 25... Nb6 {[%clk 0:02:21.4]} 26. Rb1 {[%clk 0:01:07.4]} 26...
Nc8 {[%clk 0:02:06.5]} 27. Qa3 {[%clk 0:01:00.2]} 27... Rxb1 {[%clk 0:02:04.5]}
28. Rxb1 {[%clk 0:01:02.1]} 28... Qe6 {[%clk 0:02:06.2]} 29. Qd3 {[%clk
0:00:56.6]} 29... c5 {[%clk 0:02:06.8]} 30. Rc1 {[%clk 0:00:56]} 30... Qe7
{[%clk 0:02:05.9]} 31. a4 {[%clk 0:00:54.1]} 31... Na7 {[%clk 0:01:55.1]} 32. f3
{[%clk 0:00:41.9]} 32... Nc6 {[%clk 0:01:55.8]} 33. Qb5 {[%clk 0:00:41.1]} 33...
Qe6 {[%clk 0:01:46.8]} 34. Rxc5 {[%clk 0:00:40.1]} 34... Qa2+ {[%clk 0:01:48.2]}
35. Kh3 {[%clk 0:00:39.8]} 35... Ne7 {[%clk 0:01:49.6]} 36. Qc4 {[%clk
0:00:33.9]} 36... Qf2 {[%clk 0:01:49.9]} 37. Bd6 {[%clk 0:00:32.9]} 37... d3
{[%clk 0:01:42.9]} 38. Bxe7 {[%clk 0:00:32.5]} 38... d2 {[%clk 0:01:44.5]} 39.
Rd5 {[%clk 0:00:25.9]} 39... Re8 {[%clk 0:01:31.6]} 40. Qd3 {[%clk 0:00:26]}
40... h5 {[%clk 0:01:23.5]} 41. Bc5 {[%clk 0:00:27]} 41... d1=Q {[%clk
0:00:58.5]} 42. Qxd1 {[%clk 0:00:24.1]} 42... Qa2 {[%clk 0:01:00.4]} 43. Be3
{[%clk 0:00:20.8]} 43... h4 {[%clk 0:00:56.7]} 44. Rd8 {[%clk 0:00:19.2]} 44...
Qe6+ {[%clk 0:00:57.4]} 45. g4 {[%clk 0:00:20.4]} 45... Kh7 {[%clk 0:00:54.3]}
46. Rxe8 {[%clk 0:00:21.4]} 46... Qxe8 {[%clk 0:00:55]} 47. Kxh4 {[%clk
0:00:22.9]} 47... Qd8+ {[%clk 0:00:55.5]} 48. Qxd8 {[%clk 0:00:23.1]} 1-0

[Event "*** Titled Tuesday Blitz"]
[Site "Chess.com"]
[Date "2019.12.03"]
[Round "7"]
[White "PawnEatingZombie"]
[Black "davigator"]
[Result "1-0"]
[WhiteElo "2140"]
[BlackElo "2293"]
[TimeControl "180+2"]
[EndTime "14:35:40 PST"]
[Termination "PawnEatingZombie won by resignation"]

1. d4 {[%clk 0:03:01.9]} 1... Nf6 {[%clk 0:02:59.2]} 2. c4 {[%clk 0:03:03.3]}
2... e6 {[%clk 0:02:59.9]} 3. Nc3 {[%clk 0:03:04.8]} 3... Bb4 {[%clk 0:03:00.4]}
4. Qc2 {[%clk 0:03:06.4]} 4... d5 {[%clk 0:03:00.2]} 5. cxd5 {[%clk 0:03:07]}
5... exd5 {[%clk 0:03:00.8]} 6. Bf4 {[%clk 0:03:07.2]} 6... c6 {[%clk
0:03:00.7]} 7. e3 {[%clk 0:03:08]} 7... O-O {[%clk 0:03:01.2]} 8. Bd3 {[%clk
0:03:08]} 8... Bg4 {[%clk 0:03:01.4]} 9. Ne2 {[%clk 0:03:06.6]} 9... Bh5 {[%clk
0:03:01.6]} 10. f3 {[%clk 0:02:26]} 10... Re8 {[%clk 0:02:58.3]} 11. O-O-O
{[%clk 0:02:19.4]} 11... a5 {[%clk 0:02:54.9]} 12. e4 {[%clk 0:02:04.3]} 12...
dxe4 {[%clk 0:02:53.5]} 13. fxe4 {[%clk 0:02:05.3]} 13... a4 {[%clk 0:02:51.9]}
14. e5 {[%clk 0:01:52.9]} 14... Bxe2 {[%clk 0:02:52]} 15. Nxe2 {[%clk
0:01:47.6]} 15... Ng4 {[%clk 0:02:49]} 16. Bxh7+ {[%clk 0:01:47.1]} 16... Kh8
{[%clk 0:02:50.3]} 17. Qf5 {[%clk 0:01:30.1]} 17... Qh4 {[%clk 0:02:29.1]} 18.
Bg3 {[%clk 0:01:07.6]} 18... Qxh7 {[%clk 0:02:29.3]} 19. Qxg4 {[%clk 0:01:08.7]}
19... a3 {[%clk 0:02:28.3]} 20. b3 {[%clk 0:01:07.2]} 20... Na6 {[%clk
0:02:26.2]} 21. Rhf1 {[%clk 0:01:02.7]} 21... Re7 {[%clk 0:02:25.3]} 22. Rf5
{[%clk 0:01:02.7]} 22... g6 {[%clk 0:02:25.2]} 23. Bh4 {[%clk 0:00:45.8]} 23...
Rd7 {[%clk 0:02:19.2]} 24. Bf6+ {[%clk 0:00:44.2]} 24... Kg8 {[%clk 0:02:19.7]}
25. h4 {[%clk 0:00:31.5]} 25... Kf8 {[%clk 0:02:16.9]} 26. Rf3 {[%clk
0:00:30.4]} 26... Ke8 {[%clk 0:02:17.2]} 27. Ng3 {[%clk 0:00:23.5]} 27... Nc7
{[%clk 0:02:09.2]} 28. Ne4 {[%clk 0:00:23.2]} 28... Nd5 {[%clk 0:02:09.9]} 29.
Ng5 {[%clk 0:00:23]} 29... Qh5 {[%clk 0:02:08.9]} 30. Qxh5 {[%clk 0:00:16.2]}
30... gxh5 {[%clk 0:02:09.4]} 31. Ne4 {[%clk 0:00:16.2]} 31... Rc8 {[%clk
0:02:01.6]} 32. Nc5 {[%clk 0:00:11.7]} 32... Bxc5 {[%clk 0:02:01.7]} 33. dxc5
{[%clk 0:00:12.7]} 33... Nc7 {[%clk 0:01:59.4]} 34. Rf5 {[%clk 0:00:10.1]} 34...
Rxd1+ {[%clk 0:01:57.6]} 35. Kxd1 {[%clk 0:00:12]} 35... Kd7 {[%clk 0:01:58.7]}
36. Rxh5 {[%clk 0:00:12.7]} 36... Ke6 {[%clk 0:01:59.6]} 37. Rg5 {[%clk
0:00:10.9]} 37... Nd5 {[%clk 0:01:58.1]} 38. Ke2 {[%clk 0:00:05.5]} 38... Nxf6
{[%clk 0:01:56.3]} 39. exf6 {[%clk 0:00:06.6]} 39... Kxf6 {[%clk 0:01:58.2]} 40.
Rg4 {[%clk 0:00:07.2]} 40... Kf5 {[%clk 0:01:58.6]} 41. Ra4 {[%clk 0:00:07.6]}
41... Rg8 {[%clk 0:01:57.7]} 42. Kf3 {[%clk 0:00:07.4]} 42... Rd8 {[%clk
0:01:58.3]} 43. Rxa3 {[%clk 0:00:07.9]} 43... Rd5 {[%clk 0:01:59.7]} 44. Ra7
{[%clk 0:00:07.8]} 44... Rxc5 {[%clk 0:01:59.2]} 45. Rxb7 {[%clk 0:00:08.9]}
45... Rc2 {[%clk 0:01:59.8]} 46. g4+ {[%clk 0:00:09.5]} 46... Kf6 {[%clk
0:01:59.8]} 47. a4 {[%clk 0:00:10.7]} 47... Rc3+ {[%clk 0:02:00.5]} 48. Kf4
{[%clk 0:00:11.3]} 48... Rd3 {[%clk 0:02:00.8]} 49. a5 {[%clk 0:00:11.8]} 49...
Rd4+ {[%clk 0:02:00.8]} 50. Kf3 {[%clk 0:00:13]} 50... Rd3+ {[%clk 0:01:59.4]}
51. Ke4 {[%clk 0:00:14.2]} 51... Rd1 {[%clk 0:01:59.3]} 52. a6 {[%clk
0:00:15.3]} 52... Ke6 {[%clk 0:02:00.2]} 53. a7 {[%clk 0:00:16.4]} 53... Ra1
{[%clk 0:02:01.5]} 54. h5 {[%clk 0:00:17.3]} 54... f6 {[%clk 0:01:55.3]} 55. h6
{[%clk 0:00:17.9]} 55... Kd6 {[%clk 0:01:56.5]} 56. h7 {[%clk 0:00:19.1]} 56...
Rh1 {[%clk 0:01:57.4]} 57. a8=Q {[%clk 0:00:18.9]} 57... Re1+ {[%clk 0:01:55.7]}
58. Kd3 {[%clk 0:00:19.1]} 58... Re6 {[%clk 0:01:54]} 59. Qb8+ {[%clk
0:00:16.7]} 59... Kc5 {[%clk 0:01:53.2]} 60. b4+ {[%clk 0:00:17.9]} 60... Kd5
{[%clk 0:01:53.5]} 61. Rd7+ {[%clk 0:00:18.6]} 1-0